Cogmind - Beta 16.1 @@@ ROGUE MODE // 2026.06.21 @ 20:35:36 Player: Godsword Result: Self-destructed Performance ------------- Evolutions (4) 2000 Regions Visited (6) 1200 Robots Destroyed (26) 130 Value Destroyed (556) 556 Prototype IDs (7) 140 Alien Tech Used (0) 0 Bonus (948) 948 TOTAL SCORE: 4974 Bonus ------- Follower Combat Kills 148 Registered with UFD 300 Met Optimus in HQ 500 Cogmind --------- Core Integrity 458/850 Matter 249/300 Energy 315/315 System Corruption 3% Temperature Cool (0) Movement Flying (117) Ox1 Location -6/Factory Parts ------- > --- POWER (2) -------- Neutrino Core > --- PROPULSION (5) --- Flight Unit Impulse Thruster > --- UTILITY (6) ------ Improved Heat Sink Structural Scanner Hacking Suite A0-MCA's Component Scanner > --- WEAPON (2) ------- Missile Launcher > --- INVENTORY (5) ---- Missile Launcher Vortex Trap Vortex Trap Vortex Trap DRS Beacon (Ready) Peak State ------------ > --- POWER ------------ Neutrino Core > --- PROPULSION ------- Flight Unit Cesium-ion Thruster Xenon Bombardment Thruster Impulse Thruster > --- UTILITY ---------- Improved Heat Sink Large Storage Unit Structural Scanner Hacking Suite A0-MCA's Component Scanner Mapping Drone Bay > --- WEAPON ----------- Missile Launcher Missile Launcher > --- INVENTORY -------- Impulse Thruster Array High-powered Tractor Beam Vortex Trap Vortex Trap Vortex Trap DRS Beacon [Rating: 52] Favorites ----------- Power Light Nuclear Core Engine Deuterium Engine Power Core Light Nuclear Core Propulsion Compact Wheel Wheel Compact Wheel Flight Unit Flight Unit Utility Improved Heat Sink Device Improved Heat Sink Storage Small Storage Unit Processor A0-MCA's Component Scanner Hackware Hacking Suite Weapon EM Pulse Gun Energy Gun EM Pulse Gun Energy Cannon EM Pulse Cannon Launcher Heavy Missile Launcher Special Weapon Mining Laser Impact Weapon Great Maul Build | -11 -10 -10 -8 -6 -6 -6 ------- Run | Yrd Mat Sub Scr Fac Was Fac Slots Evolved 8 | . . . . 8 . . Power 1 | . . . . 1 . . Propulsion 3 | . . . . 3 . . Utility 4 | . . . . 4 . . Weapon . | . . . . . . . Parts Attached 41 | 9 4 1 5 9 2 11 Power 6 | 1 1 . 1 2 . 1 Engine 3 | 1 . . 1 1 . . Core 3 | . 1 . . 1 . 1 Reactor . | . . . . . . . Propulsion 11 | 2 1 . . 3 1 4 Treads . | . . . . . . . Leg . | . . . . . . . Wheel 6 | 2 1 . . 3 . . Hover . | . . . . . . . Flight 5 | . . . . . 1 4 Utility 14 | 3 1 . 1 4 1 4 Device 6 | 1 1 . . 1 1 2 Storage 6 | 2 . . 1 3 . . Processor 1 | . . . . . . 1 Hackware 1 | . . . . . . 1 Protection . | . . . . . . . Artifact . | . . . . . . . Weapon 10 | 3 1 1 3 . . 2 Energy Gun 4 | 3 1 . . . . . Energy Cannon 1 | . . . 1 . . . Ballistic Gun . | . . . . . . . Ballistic Cannon . | . . . . . . . Launcher 3 | . . . 1 . . 2 Special Weapon 1 | . . 1 . . . . Impact Weapon 1 | . . . 1 . . . Slashing Weapon . | . . . . . . . Piercing Weapon . | . . . . . . . Special Melee Weapon . | . . . . . . . Unidentified Prototypes 1 | . . . . . 1 . Corrupted Parts 2 | . 2 . . . . . System Corruption 7 | . 7 . . . . . Parts Lost 11 | . . . . 2 3 6 Power 3 | . . . . 2 1 . Propulsion 6 | . . . . . 1 5 Utility 1 | . . . . . . 1 Weapon 1 | . . . . . 1 . Highest Loss Streak 4 | . . . . 2 3 4 To Critical Strikes . | . . . . . . . Average Backups 8 | 2 7 7 8 8 10 7 Power . | . 1 1 . . . . Propulsion 2 | . 2 2 2 3 3 2 Utility 3 | . . 2 4 4 5 3 Weapon 1 | . 2 2 . . 2 1 Tool/Special . | . . . . . . . Unused Backups 13 | . 3 . 9 . . 1 Power 2 | . 1 . 1 . . . Propulsion 4 | . 2 . 2 . . . Utility 5 | . . . 4 . . 1 Weapon 1 | . . . 1 . . . Tool/Special 1 | . . . 1 . . . Average Slot Usage (%) 92 | . 100 100 99 75 68 47 Engine 4 | . 6 . 7 . 3 . Core 7 | . 8 14 6 6 . 2 Wheel 25 | . 28 28 28 22 28 2 Flight 1 | . . . . . . 16 Device 13 | . 14 14 14 13 13 12 Storage 14 | . 14 14 14 19 14 5 Energy Gun 14 | . 28 24 14 . . . Launcher 4 | . . . 6 6 3 2 Impact Weapon 4 | . . . 6 6 3 . Peak Build Rating 52 | 9 12 12 21 44 46 52 Average Rating 18 | 6 10 12 16 36 33 36 On Entrance 19 | . 9 12 12 21 39 41 Avg Prop Armor Cover (%) 5 | . . . . 2 3 11 Naked Turns . | . . . . . . . Heaviest Build 60 | 15 15 15 37 60 50 33 Greatest Support 80 | 32 32 32 32 80 64 32 Greatest Overweight (x) 9 | . . . 1 1 1 9 Average Overweight (x) . | . . . . . . 2 Largest Inventory Capacity 15 | 8 8 8 15 15 15 15 Average Capacity 11 | 7 8 8 11 15 15 11 Most Carried 15 | 7 8 8 15 15 15 15 Average Carried 10 | 2 7 7 11 12 14 10 Final Capacity 15 | 8 8 8 15 15 15 5 Final Carried 15 | 7 8 8 15 14 15 5 Class Distribution -------------------- 88% | Mutant 11% | Scavenger-Mutant Dominant Class ---------------- Mutant | -10/Materials Mutant | -10/Subcaves Mutant | -8/Scraptown Mutant | -6/Factory Scavenger-Mutant | -6/Waste Mutant | -6/Factory Resources | -11 -10 -10 -8 -6 -6 -6 ----------- Run | Yrd Mat Sub Scr Fac Was Fac Matter Collected 1472 | 290 40 35 339 353 . 415 Remotely . | . . . . . . . Salvage Created 1146 | 233 186 35 203 397 . 92 Parts 52 | 15 12 3 3 17 . 2 Haulers Intercepted . | . . . . . . . Recyclers Shooed 1 | . . . . 1 . . Parts Field Recycled . | . . . . . . . Retrieved Matter . | . . . . . . . Parts Self-Destructed 12 | . . 11 1 . . . Prevented 2 | . . . 2 . . . Parts Restored . | . . . . . . . Kills | -11 -10 -10 -8 -6 -6 -6 ------- Run | Yrd Mat Sub Scr Fac Was Fac Combat Hostiles Destroyed 5 | . 2 1 . . . 2 Guns 2 | . 2 . . . . . AOE 3 | . . 1 . . . 2 Classes Destroyed 7 | 3 2 1 . 1 . . Worker 3 | 2 . . . 1 . . Builder 8 | . 1 . . 7 . . Tunneler 5 | 5 . . . . . . Recycler 4 | 1 1 . . 2 . . Watcher 1 | . . . . 1 . . Grunt 4 | . 2 . . . . 2 Subdweller 1 | . . 1 . . . . Best Kill Streak 6 | 5 3 1 . 6 . 2 Combat Bots Only 2 | . 2 1 . . . 2 Max Kills in Single Turn 1 | 1 1 1 . 1 . 1 Gunslinging . | . . . . . . . Exploded 1 | . . 1 . . . 1 Melee . | . . . . . . . Uniques/NPCs Destroyed . | . . . . . . . Combat | -11 -10 -10 -8 -6 -6 -6 -------- Run | Yrd Mat Sub Scr Fac Was Fac Hostile Shots Fired 42 | . 7 . . 3 2 30 Missed 12 | . 2 . . 1 . 9 Hits 30 | . 5 . . 2 2 21 Melee 2 | . . . . . 2 . Projectile 28 | . 5 . . 2 . 21 AOE 2 | . . . . . . 2 Critical Strikes 4 | . . . . . 2 2 Part Disruptions 2 | . . . . 2 . . Damage Taken 1000 | 24 104 . . 240 102 530 Core 406 | . 14 . . 77 83 232 Absorbed by Shields . | . . . . . . . Core Remaining (%) 97 | 100 . . 94 . . . Volleys Fired 71 | 11 12 43 . 2 . 3 Largest 2 | 2 2 2 . 1 . 1 Hottest 100 | 90 80 100 . 39 . 36 Shots Fired 96 | 22 24 45 . 2 . 3 Gun 50 | 22 24 4 . . . . Cannon . | . . . . . . . Launcher 5 | . . . . 2 . 3 Special 41 | . . 41 . . . . Kinetic . | . . . . . . . Thermal 52 | 11 . 41 . . . . Explosive 5 | . . . . 2 . 3 Electromagnetic 39 | 11 24 4 . . . . Robot Hit Streak 19 | 3 19 5 . . . 3 Robot Miss Streak 2 | 2 2 . . 2 . . Penetration Max . | . . . . . . . Secondary Targets . | . . . . . . . Shots Hit Robots 53 | 12 19 2 7 10 . 3 Core Hits 32 | 8 7 1 2 9 . 5 Critical Kills 1 | . . . . 1 . . Critical Parts Destroyed 2 | . . . . 2 . . Critical Strikes 7 | 3 . . 1 3 . . Burn 2 | 2 . . . . . . Corrupt 1 | 1 . . . . . . Smash 4 | . . . 1 3 . . Melee Attacks 18 | . . . 7 11 . . Impact 18 | . . . 7 11 . . Slashing . | . . . . . . . Piercing . | . . . . . . . Sneak Attacks 8 | . . . . 8 . . Combat Hostiles . | . . . . . . . Follow-up Attacks . | . . . . . . . Damage Inflicted 2394 | 207 317 89 514 879 . 388 Guns 468 | 169 277 22 . . . . Cannons . | . . . . . . . Explosions 613 | 38 40 67 . 124 . 344 Melee 1269 | . . . 514 755 . . Ramming 44 | . . . . . . 44 Kinetic . | . . . . . . . Thermal 235 | 128 40 67 . . . . Explosive 400 | . . . . 56 . 344 Electromagnetic 446 | 79 277 22 . 68 . . Impact 1269 | . . . 514 755 . . Slashing . | . . . . . . . Piercing . | . . . . . . . Highest Corruption 7 | . 7 7 . 1 1 3 Average Corruption 5 | . 6 7 . 1 1 2 Corruption Purged . | . . . . . . . Corruption Blocked . | . . . . . . . Effects 31 | . 1 24 . 2 . 4 Message Errors 9 | . . 6 . 1 . 2 Matter Fused 7 | . . 7 . . . . Heat Flow Errors 7 | . 1 5 . 1 . . Energy Discharges 3 | . . 3 . . . . Data Loss (minor) 5 | . . 3 . . . 2 Overload Shots . | . . . . . . . Overflow Damage 543 | . 10 . 172 358 . 3 Projectiles . | . . . . . . . Explosions 13 | . 10 . . . . 3 Melee 530 | . . . 172 358 . . Knockbacks 6 | . . . 2 4 . . Impact 6 | . . . 2 4 . . Kinetic . | . . . . . . . Secondary . | . . . . . . . Self-Inflicted Damage 294 | 25 39 . . 210 . 20 Shots 8 | 1 1 . . 6 . . Rammed 12 | . . . . . . 12 Targets Rammed 12 | . . . . . . 12 Kicked . | . . . . . . . Crushed . | . . . . . . . Highest Temperature 269 | 240 269 246 . 56 . 4 Average Temperature 92 | 96 85 119 . 34 . 3 Received Heat Transfer 66 | . 36 . . . . 30 Effects 1 | . 1 . . . . . Energy Bleed 1 | . 1 . . . . . Siege Activations . | . . . . . . . Martial Activations . | . . . . . . . Shielding Activations . | . . . . . . . Robots Disrupted . | . . . . . . . Combat Hostiles . | . . . . . . . Robots Corrupted 7 | . . . 2 5 . . Combat Hostiles . | . . . . . . . Parts Fried 18 | . 1 . 3 14 . . Impact Corruptions 20 | . . . 7 13 . . Robots Melted . | . . . . . . . Combat Hostiles . | . . . . . . . Parts Melted 1 | 1 . . . . . . Heat Transferred 557 | 457 50 50 . . . . Parts Sabotaged . | . . . . . . . Parts Stolen . | . . . . . . . Parts Stripped . | . . . . . . . Power Chain Reactions 5 | 1 1 1 . 2 . . Alert | -11 -10 -10 -8 -6 -6 -6 ------- Run | Yrd Mat Sub Scr Fac Was Fac Maximum Alert Level 1 | . . . . 1 . . Low Security (%) 98 | 100 100 . . 96 100 100 Level 1 1 | . . . . 3 . . Level 2 . | . . . . . . . Level 3 . | . . . . . . . Level 4 . | . . . . . . . Level 5 . | . . . . . . . High Security . | . . . . . . . Max Security . | . . . . . . . Peak Influence 286 | 20 70 . . 286 97 75 Initial 97 | . . . . . 97 11 Average 21 | 4 26 . . 11 63 26 Influence Increases 706 | 40 80 . 20 339 . 227 Destroy 0b10 Robot/C 160 | . 40 . . . . 120 Destroy 0b10 Robot/NC 130 | 40 10 . 20 55 . 5 Destroy Leader 22 | . 10 . . 2 . 10 Allied During Kill 31 | . . . . . . 31 Disable Machine 300 | . 15 . . 270 . 15 Destroy Structure 33 | . 5 . . 12 . 16 Lose Combat Pursuer 30 | . . . . . . 30 Influence Decreases 656 | 40 50 30 20 61 261 194 Entered New Map 202 | . . 15 . . 181 6 Time Decay 326 | 40 50 15 20 41 50 110 Lost Part 71 | . . . . 20 30 21 Lost Ally 57 | . . . . . . 57 Squads Dispatched 5 | . 1 . . 3 . 1 Investigation 2 | . . . . 1 . 1 Extermination 1 | . . . . 1 . . Reinforcement 2 | . 1 . . 1 . . Assault . | . . . . . . . Garrison . | . . . . . . . Intercept . | . . . . . . . Searches Triggered . | . . . . . . . Construction Impeded 1 | . . . . 1 . . Haulers Reinforced . | . . . . . . . Active Scanning Responses . | . . . . . . . Cargo Convoy Interrupts . | . . . . . . . Stealth | -11 -10 -10 -8 -6 -6 -6 --------- Run | Yrd Mat Sub Scr Fac Was Fac Distress Signals . | . . . . . . . Communications Jammed . | . . . . . . . Distress Signals . | . . . . . . . Times Spotted 20 | . 4 1 . 3 5 7 Peak Tracking Total 6 | . 3 . . 1 6 4 Tactical Retreats 1 | . . . . . . 1 Traps | -11 -10 -10 -8 -6 -6 -6 ------- Run | Yrd Mat Sub Scr Fac Was Fac Traps Triggered 2 | . . . . 2 . . Indirectly . | . . . . . . . Trap Hack Attempts . | . . . . . . . Triggered . | . . . . . . . Disarmed . | . . . . . . . Reprogrammed . | . . . . . . . Reused . | . . . . . . . Traps Extracted . | . . . . . . . Installed . | . . . . . . . Triggered . | . . . . . . . Most Traps Carried 3 | . . . 3 3 3 3 Machines | -11 -10 -10 -8 -6 -6 -6 ---------- Run | Yrd Mat Sub Scr Fac Was Fac Machines Disabled 20 | . 1 . . 18 . 1 Max in Single Turn 8 | . 1 . . 8 . 1 Machines Repaired . | . . . . . . . Machines Dismantled . | . . . . . . . Machines Sabotaged . | . . . . . . . Overloaded Fab Kills . | . . . . . . . Hacking | -11 -10 -10 -8 -6 -6 -6 --------- Run | Yrd Mat Sub Scr Fac Was Fac Machines Accessed 11 | . 2 . 7 1 . 1 Terminals 2 | . 1 . . 1 . . Fabricators . | . . . . . . . Repair Stations . | . . . . . . . Recycling Units 2 | . 1 . . . . 1 Scanalyzers . | . . . . . . . Garrison Access . | . . . . . . . Total Hacks 53 | . 6 . 42 2 . 3 Successful 44 | . 1 . 42 . . 1 Failed 9 | . 5 . . 2 . 2 Catastrophic 6 | . 3 . . 2 . 1 Database Lockouts . | . . . . . . . Manual 9 | . 4 . 5 . . . Terminals 6 | . 4 . . 2 . . Fabricators . | . . . . . . . Repair Stations . | . . . . . . . Recycling Units 5 | . 2 . . . . 3 Scanalyzers . | . . . . . . . Garrison Access . | . . . . . . . Terminal Hacks 42 | . . . 42 . . . Record 33 | . . . 33 . . . Robot Analysis 8 | . . . 8 . . . Proto ID Catalog 1 | . . . 1 . . . Fabricator Hacks . | . . . . . . . Repair Station Hacks . | . . . . . . . Recycling Unit Hacks 2 | . 1 . . . . 1 Process 1 | . . . . . . 1 Retrieve Components 1 | . 1 . . . . . Scanalyzer . | . . . . . . . Garrison Access Hacks . | . . . . . . . Unauthorized Hacks . | . . . . . . . Terminals . | . . . . . . . Fabricators . | . . . . . . . Repair Stations . | . . . . . . . Recycling Units . | . . . . . . . Scanalyzers . | . . . . . . . Garrison Access . | . . . . . . . Data Cores Recovered . | . . . . . . . Used . | . . . . . . . Hacking Detections 3 | . 1 . . 1 . 1 Full Trace Events 2 | . . . . 1 . 1 Feedback Events . | . . . . . . . Feedback Blocked . | . . . . . . . Robot Schematics Acquired . | . . . . . . . Robots Built . | . . . . . . . Authchips . | . . . . . . . Time . | . . . . . . . Total Robot Build Rating . | . . . . . . . Part Schematics Acquired . | . . . . . . . Parts Built . | . . . . . . . Authchips . | . . . . . . . Time . | . . . . . . . Total Part Build Rating . | . . . . . . . Part Studies Acquired . | . . . . . . . Parts Repaired . | . . . . . . . Time . | . . . . . . . Parts Recycled . | . . . . . . . Recycled Matter 19 | . . . . . . 19 Retrieved Matter . | . . . . . . . Retrieved Components . | . . . . . . . Parts Scanalyzed . | . . . . . . . Part Schematics Acquired . | . . . . . . . Parts Damaged . | . . . . . . . Bothacking | -11 -10 -10 -8 -6 -6 -6 ------------ Run | Yrd Mat Sub Scr Fac Was Fac Used RIF Installer . | . . . . . . . Robots Hacked . | . . . . . . . Non-combat . | . . . . . . . Combat . | . . . . . . . Robot Hacks Applied . | . . . . . . . Relay Couplers Released . | . . . . . . . Fabnet Peak Effective % . | . . . . . . . Robots Rewired . | . . . . . . . Allies Hacked . | . . . . . . . Hacks Repelled . | . . . . . . . Allies | -11 -10 -10 -8 -6 -6 -6 -------- Run | Yrd Mat Sub Scr Fac Was Fac Total Allies 5 | . . . . . . 5 Largest Group 5 | . . . . . . 5 Highest-Rated Group 235 | . . . . . . 235 Highest-Rated Ally 47 | . . . . . . 47 Initial UFD Resources 24 | . . . . 24 24 24 Total Orders 1 | . . . . . . 1 EXPLORE 1 | . . . . . . 1 Ally Attacks 29 | . . . . . . 29 Total Damage 587 | . . . . . . 587 Kills 6 | . . . . . . 6 Allies Corrupted . | . . . . . . . Allies Melted . | . . . . . . . Intel | -11 -10 -10 -8 -6 -6 -6 ------- Run | Yrd Mat Sub Scr Fac Was Fac Active Infowar (turns) 330 | 48 183 . . . . 99 Terrain 231 | 48 183 . . . . . Structural 99 | . . . . . . 99 Robot Analysis Total 8 | . . . 8 . . . Derelict Logs Recovered 3 | . . 2 1 . . . Drone Launches 3 | . . . . . . 3 Drone Recoveries . | . . . . . . . Exploration | -11 -10 -10 -8 -6 -6 -6 ------------- Run | Yrd Mat Sub Scr Fac Was Fac Turns Passed 4310 | 131 199 833 2305 471 102 269 Spaces Moved 3307 | 82 149 538 2071 290 92 85 Core 15 | 10 . . . . . 5 Treads . | . . . . . . . Legs . | . . . . . . . Wheels 3232 | 72 149 538 2071 290 92 20 Hover . | . . . . . . . Flight 60 | . . . . . . 60 Fastest Speed 29 | 50 100 100 100 100 100 29 Average Speed 107 | 93 100 100 107 106 105 193 Slowest Speed 500 | 100 100 100 115 115 115 500 Overloaded Moves . | . . . . . . . Propulsion Burnouts . | . . . . . . . Robots Hopped . | . . . . . . . Potential Cave-ins . | . . . . . . . Cave-ins Triggered . | . . . . . . . Exploration Rate (%) 35 | 3 24 42 90 9 67 13 Regions Visited 6 Branch Regions 2 Pre-discovered Areas 1 | . . 1 . . . . Known Exits Taken . | . . . . . . . Unknown Exits Taken 4 | 1 1 1 1 . . . Scrap Searched 4 | . . . 4 . . . Spaces Dug 1 | . . . . 1 . . Terrain Destroyed 43 | . 4 8 . 16 . 15 Melee 1 | . . . . 1 . . Projectile . | . . . . . . . AOE 42 | . 4 8 . 15 . 15 Terrain Rammed . | . . . . . . . Walls Destroyed . | . . . . . . . Machines Disabled . | . . . . . . . Actions | -11 -10 -10 -8 -6 -6 -6 --------- Run | Yrd Mat Sub Scr Fac Was Fac Total 3830 | 109 174 704 2138 428 96 181 Wait 301 | . . 118 11 110 . 62 Move 3302 | 81 148 537 2070 290 91 85 Hop . | . . . . . . . Pick Up 39 | 7 4 1 21 5 1 . Fast Attach 20 | 8 2 . 3 4 2 1 Attach 14 | . . . . 4 . 10 Detach 3 | . . . . . . 3 Swap 14 | 1 4 4 3 1 . 1 Drop 32 | 1 4 1 19 1 2 4 Fire 71 | 11 12 43 . 2 . 3 Melee 18 | . . . 7 11 . . Ram 12 | . . . . . . 12 Kick . | . . . . . . . Crush . | . . . . . . . Escape Stasis . | . . . . . . . Rewire 4 | . . . 4 . . . Trap . | . . . . . . . Miscellaneous . | . . . . . . . Route ------- -11/Scrapyard -10/Materials -10/Subcaves -8/Scraptown (discovered 2 exits: *Fac x2) -6/Factory -6/Waste -6/Factory History --------- Turn | Location | Event 3 | -11/Scrapyard | Discovered new exit (range 15) 132 | -11/Scrapyard | Entered Materials 305 | -10/Materials | Discovered new exit (range 8) 307 | -10/Materials | Build established: Mutant 331 | -10/Materials | Entered Subcaves 332 | -10/Subcaves | Approached by a straggling Scientist 335 | -10/Subcaves | Learned location of Zion (-6) 696 | -10/Subcaves | A swath of the cavern ceiling suddenly collapsed 1019 | -10/Subcaves | Learned location of 1 exit from Materials 1164 | -10/Subcaves | Entered Scraptown 1164 | -8/Scraptown | System corruption cleaned by C-Scrubber 1314 | -8/Scraptown | Visited UFD Registry 1314 | -8/Scraptown | Registered with UFD as "Technoskull" 1330 | -8/Scraptown | Visited Symbiants 1362 | -8/Scraptown | Visited Red Mages 1579 | -8/Scraptown | Visited Shadow of the Wyrm 1600 | -8/Scraptown | Visited Cyclists 1613 | -8/Scraptown | Entered Cyclist Reading Room 1680 | -8/Scraptown | Visited TADAMA 1728 | -8/Scraptown | Visited Spacefarers 1804 | -8/Scraptown | Scanned Subdweller tech in exchange for log data 1807 | -8/Scraptown | Learned 8 Research zone layouts 1821 | -8/Scraptown | Discovered new exit (range 13) 1851 | -8/Scraptown | Guru changed UFD alias to "Nanocycle" 2056 | -8/Scraptown | Visited Analyses Database 2079 | -8/Scraptown | Visited Science Guys 2100 | -8/Scraptown | Visited Scrapoid Research Area 2289 | -8/Scraptown | Visited Science Testing Area 2307 | -8/Scraptown | Visited Derelict Rescue Squad 2314 | -8/Scraptown | Found DRS Beacon 2338 | -8/Scraptown | Visited Junk Repository 2417 | -8/Scraptown | Visited Scrapoid Pod Storage 2422 | -8/Scraptown | Found Scrapoid Pod 2446 | -8/Scraptown | Visited A0-MCA Data Center 2453 | -8/Scraptown | Given a B- rating by A0-MCA 2459 | -8/Scraptown | Found A0-MCA's Component Scanner 3068 | -8/Scraptown | Visited Cartography Club 3389 | -8/Scraptown | Met Optimus 3389 | -8/Scraptown | Accepted into 0bPrime 3456 | -8/Scraptown | Discovered new exit (range 3) 3469 | -8/Scraptown | Entered Factory 3469 | -6/Factory | Evolved 8 slots: Power x1, Propulsion x3, Utility x4 3940 | -6/Factory | Sucked down chute 3940 | -6/Factory | Entered Waste 3977 | -6/Waste | Spotted C-40 Crusher 3979 | -6/Waste | Spotted C-40 Crusher 3989 | -6/Waste | Spotted C-40 Crusher 3991 | -6/Waste | Spotted C-40 Crusher 3997 | -6/Waste | Spotted C-40 Crusher 3999 | -6/Waste | Crushed by Compactor (1 part destroyed, 1 dropped) 4001 | -6/Waste | Crushed by Compactor (1 part destroyed, 1 dropped) 4003 | -6/Waste | Spotted C-40 Crusher 4019 | -6/Waste | Discovered new exit (range 11) 4032 | -6/Waste | Lost 3 parts (1p1n1w) 4042 | -6/Waste | Entered Factory 4105 | -6/Factory | Scrapoid Pod released 06F06-D (x5) 4110 | -6/Factory | Lost 4 parts (3n1u) 4311 | -6/Factory | Self-destructed Last Messages --------------- 04290_ Dropped Mapping Drone Bay. 04291_ >> Lost connection to Mapping Drone. 04291_ K-01 Serf collects debris. 04297_ 06F04-D destroyed. 04299_ Slug penetrates G-50 Soldier. 04299_ K-01 Serf collects debris. 04300_ G-50 Soldier suffers critical hit (Burn). 04300_ Slug penetrates Wall. 04301_ 06F02-D destroyed. 04301_ G-50 Soldier destroyed. 04303_ K-01 Serf collects debris. 04304_ 06F05-D destroyed. 04304_ G-50 Soldier destroyed. 04304_ Destroyed Adv. Heat Sink. 04306_ K-01 Serf collects debris. 04306_ Recycling Unit disabled. 04307_ Xenon Bombardment Thruster destroyed. 04308_ G-50 Soldier destroyed. 04309_ K-01 Serf collects debris. 04310_ Cesium-ion Thruster destroyed. Map ----- +----------------------------------------------------+ | ????????????????????????"" # """" | | ???????????????????????#"" # | | ???????????????????????# ####### | | ???????????????????????+ # | | ???????????????????????# # | | ???????????????? ? ?? # ######### # | | ??????? ###########+#### # ? ? ## # ! | | ??????? #?? ??## # | | ???????? ? #"" ??## # | | ????? ? ? #""" ## + | | ?? ??" ?? ? #"""?? ?# # | | ?? ??" ???? #"?"? ## # | | ?? ??" ####### # ###### # ## # | | ?? ?? # = ###+##### # | | ?" """ # [= # | | "" """ # = ####### | | "" """ # """ [g "" #???### | | # """ [ % Y" """" """" ####### | | "" """ # """ [ [!"*" """" """" # | | "" """ # !!== """" """" # | | "" """ ###+########### ==!!! """" """" # | | !* != =!%[![ """" """" [ # | | "" """ | = | k!![ """" """" # =/ | | "" """ = = ! """" """" + =/ | | "" """ = ] # = | | = @ # | | "" """ [""### T######;######+#### # | | "" """ ""####### #### ###+### | | "" """ G####### #### | | ""###???# ##?# | | ""####### #?## | | ##????# #### | | ??? + #### | | ########## #??# ##?######## | | #### #??# = ] ##???####?# | | ????????## ?#?# ##?#?#?#### | | ????????## ???# ###?##???## | | ????????## ??? + ##?###????# | | ????????## ??#??#?# #####????## | | ???????? ??????###############???#??#?# | | ?????????###+##??#????????????#?????#?#########+## | | ????????? ??????????#????#?##?#### | | ??????????????????????????#????#?#?#??# """" | | ?????????????????????????#???#?#?????## """" | | ????????????????????????????#?????#?#?# "S """" | | ???????????????????????????????????#??# """ """" | | ????????????????????????????????#?????? "" | | ??????????????????????????????????????# | | ??????????????????????????????????????#?#?###?#?## | | | +----------------------------------------------------+ Best States ------------- Heat Dissipation 51 Energy Generation 27 Energy Capacity 570 Matter Stores 470 Matter Capacity 500 Sight Range 16 Terrain Scan Range 16 Terrain Scan Density 10 Evasion (%) 64 Offensive Hacking 10 Item Schematics ----------------- None Robot Schematics ------------------ None Fabricated ------------ Nothing Repaired ---------- Nothing Studied --------- None Alien Tech Used ----------------- None Achievements -------------- None Challenges ------------ None Game ------ Seed SigixSmartMultirail Manual? 0 Play Time 00:34:18 Cumulative 42.2 hours Start 2026.06.21 @ 18:53:03 End 2026.06.21 @ 20:35:36 Sessions 1 Manual Loads 0 Difficulty Rogue Special Mode None Game No. 106 Rogue 106 Adventurer 0 Explorer 0 Win Type - Total 3 Types 3/0/0/0/0/0/0/0/0/0 Lore% 42 Gallery% 35 Achievement% 36 Wizard Run 0 Options --------- Layout 1 ASCII 0 Keyboard 0 Movement Arrows Keybinds 0 Fullscreen 1 Font 16/SmallcapsGlow Map View 50x40 Zoom Use 0% Tactical HUD 1 Map Filters NONE Filters NONE Steam SD RUN: 2b6c65b9-1c71-424d-8ce4-d7c252b50a57